[Event "Vastgota Open 2023"]
[Site "Skara stadshotell, Jarnvagsgatan 5, Skara, Sweden"]
[Date "2023.02.19"]
[Round "7.10"]
[White "Trost, Martin"]
[Black "Cramling, Pia"]
[Result "0-1"]
[TimeControl "15 minutes + 5 seconds per move from move one (Round 1 - 2) / 30 minutes + 10 seconds per move from move one (Round 3 - 9)"]
[BlackTitle "GM"]
[WhiteFideId "1710737"]
[BlackFideId "1700030"]
[WhiteElo "1867"]
[BlackElo "2429"]

1. Nf3 {[%clk 00:27:41]} {[%emt 00:02:38]} d5 {[%clk 00:29:53]} {[%emt
00:00:27]} 2. e3 {[%clk 00:27:48]} {[%emt 00:00:04]} g6 {[%clk 00:28:47]}
{[%emt 00:01:14]} 3. c4 {[%clk 00:27:50]} {[%emt 00:00:09]} c6 {[%clk
00:28:54]} {[%emt 00:00:04]} 4. Nc3 {[%clk 00:27:57]} {[%emt 00:00:02]} Bg7
{[%clk 00:28:50]} {[%emt 00:00:14]} 5. b3 {[%clk 00:28:00]} {[%emt 00:00:07]}
dxc4 {[%clk 00:25:24]} {[%emt 00:03:36]} 6. Bxc4 {[%clk 00:27:50]} {[%emt
00:00:20]} b5 {[%clk 00:25:08]} {[%emt 00:00:26]} 7. Bxf7+ {[%clk 00:10:08]}
{[%emt 00:17:52]} Kxf7 {[%clk 00:25:05]} {[%emt 00:00:13]} 8. Ng5+ {[%clk
00:10:15]} {[%emt 00:00:03]} Ke8 {[%clk 00:24:50]} {[%emt 00:00:24]} 9. Qf3
{[%clk 00:10:16]} {[%emt 00:00:10]} Nh6 {[%clk 00:20:24]} {[%emt 00:04:35]} 10.
d4 {[%clk 00:09:12]} {[%emt 00:01:14]} b4 {[%clk 00:15:56]} {[%emt 00:04:39]}
11. Nce4 {[%clk 00:08:01]} {[%emt 00:01:22]} Qd5 {[%clk 00:16:01]} {[%emt
00:00:04]} 12. Bd2 {[%clk 00:07:30]} {[%emt 00:00:42]} a5 {[%clk 00:16:04]}
{[%emt 00:00:07]} 13. Rc1 {[%clk 00:07:35]} {[%emt 00:00:05]} Na6 {[%clk
00:16:01]} {[%emt 00:00:13]} 14. O-O {[%clk 00:03:13]} {[%emt 00:04:31]} Bf5
{[%clk 00:16:02]} {[%emt 00:00:09]} 15. Rxc6 {[%clk 00:01:28]} {[%emt
00:01:56]} Bxe4 {[%clk 00:14:45]} {[%emt 00:01:27]} 16. Nxe4 {[%clk 00:01:29]}
{[%emt 00:00:09]} Qxc6 {[%clk 00:14:18]} {[%emt 00:00:36]} 17. Nf6+ {[%clk
00:01:10]} {[%emt 00:00:29]} Qxf6 {[%clk 00:14:24]} {[%emt 00:00:05]} 18. Qxa8+
{[%clk 00:01:16]} {[%emt 00:00:04]} Kf7 {[%clk 00:14:31]} {[%emt 00:00:01]} 19.
Qd5+ {[%clk 00:01:16]} {[%emt 00:00:11]} Qe6 {[%clk 00:14:18]} {[%emt
00:00:24]} 20. Qf3+ {[%clk 00:00:55]} {[%emt 00:00:31]} Qf5 {[%clk 00:13:10]}
{[%emt 00:01:18]} 21. Qc6 {[%clk 00:00:34]} {[%emt 00:00:31]} Nb8 {[%clk
00:12:22]} {[%emt 00:00:57]} 22. Qc4+ {[%clk 00:00:39]} {[%emt 00:00:05]} Qe6
{[%clk 00:11:26]} {[%emt 00:01:06]} 23. d5 {[%clk 00:00:47]} {[%emt 00:00:03]}
Qa6 {[%clk 00:11:32]} {[%emt 00:00:04]} 24. Qf4+ {[%clk 00:00:42]} {[%emt
00:00:14]} Qf6 {[%clk 00:11:39]} {[%emt 00:00:02]} 25. Qc4 {[%clk 00:00:23]}
{[%emt 00:00:29]} Nf5 {[%clk 00:10:59]} {[%emt 00:00:50]} 26. e4 {[%clk
00:00:24]} {[%emt 00:00:10]} Nd6 {[%clk 00:11:02]} {[%emt 00:00:07]} 27. Qe2
{[%clk 00:00:23]} {[%emt 00:00:11]} Rc8 {[%clk 00:10:25]} {[%emt 00:00:46]} 28.
Kh1 {[%clk 00:00:19]} {[%emt 00:00:15]} Qd4 {[%clk 00:10:06]} {[%emt 00:00:29]}
0-1

[Event "Vastgota Open 2023"]
[Site "Skara stadshotell, Jarnvagsgatan 5, Skara, Sweden"]
[Date "2023.02.19"]
[Round "7.11"]
[White "Poley, Vladimir"]
[Black "Ask, Josef"]
[Result "1/2-1/2"]
[TimeControl "15 minutes + 5 seconds per move from move one (Round 1 - 2) / 30 minutes + 10 seconds per move from move one (Round 3 - 9)"]
[WhiteTitle "IM"]
[BlackTitle "FM"]
[WhiteFideId "13500090"]
[BlackFideId "1704583"]
[WhiteElo "2270"]
[BlackElo "2102"]

1. d4 {[%clk 00:27:44]} {[%emt 00:02:35]} Nf6 {[%clk 00:30:16]} {[%emt
00:00:04]} 2. Nc3 {[%clk 00:27:25]} {[%emt 00:00:29]} e6 {[%clk 00:29:59]}
{[%emt 00:00:27]} 3. g3 {[%clk 00:27:09]} {[%emt 00:00:26]} d5 {[%clk
00:29:27]} {[%emt 00:00:42]} 4. Bg2 {[%clk 00:27:10]} {[%emt 00:00:09]} c5
{[%clk 00:29:15]} {[%emt 00:00:22]} 5. e3 {[%clk 00:27:14]} {[%emt 00:00:07]}
Nc6 {[%clk 00:29:10]} {[%emt 00:00:14]} 6. Nge2 {[%clk 00:27:07]} {[%emt
00:00:17]} Be7 {[%clk 00:29:00]} {[%emt 00:00:21]} 7. O-O {[%clk 00:27:12]}
{[%emt 00:00:05]} O-O {[%clk 00:29:01]} {[%emt 00:00:09]} 8. a3 {[%clk
00:27:11]} {[%emt 00:00:11]} a6 {[%clk 00:28:46]} {[%emt 00:00:24]} 9. e4
{[%clk 00:26:51]} {[%emt 00:00:30]} dxe4 {[%clk 00:28:31]} {[%emt 00:00:25]} 10.
dxc5 {[%clk 00:26:54]} {[%emt 00:00:07]} Bxc5 {[%clk 00:28:26]} {[%emt
00:00:15]} 11. Qxd8 {[%clk 00:25:02]} {[%emt 00:02:03]} Rxd8 {[%clk 00:28:26]}
{[%emt 00:00:10]} 12. Nxe4 {[%clk 00:25:05]} {[%emt 00:00:06]} Nxe4 {[%clk
00:27:44]} {[%emt 00:00:52]} 13. Bxe4 {[%clk 00:25:13]} {[%emt 00:00:02]} Bd7
{[%clk 00:26:47]} {[%emt 00:01:07]} 14. b4 {[%clk 00:24:13]} {[%emt 00:01:10]}
Ba7 {[%clk 00:26:43]} {[%emt 00:00:13]} 15. Bb2 {[%clk 00:23:14]} {[%emt
00:01:10]} Be8 {[%clk 00:26:37]} {[%emt 00:00:16]} 16. Rfd1 {[%clk 00:23:11]}
{[%emt 00:00:12]} Rac8 {[%clk 00:25:28]} {[%emt 00:01:20]} 17. c4 {[%clk
00:22:45]} {[%emt 00:00:36]} Bb8 {[%clk 00:24:35]} {[%emt 00:01:03]} 18. c5
{[%clk 00:19:06]} {[%emt 00:03:49]} f6 {[%clk 00:24:25]} {[%emt 00:00:20]} 19.
Kf1 {[%clk 00:17:34]} {[%emt 00:01:41]} Bh5 {[%clk 00:22:55]} {[%emt 00:01:41]}
20. Bc2 {[%clk 00:13:42]} {[%emt 00:04:01]} Kf7 {[%clk 00:18:31]} {[%emt
00:04:35]} 21. Rxd8 {[%clk 00:13:25]} {[%emt 00:00:28]} Rxd8 {[%clk 00:18:32]}
{[%emt 00:00:09]} 22. Rd1 {[%clk 00:13:30]} {[%emt 00:00:04]} Rxd1+ {[%clk
00:18:13]} {[%emt 00:00:30]} 23. Bxd1 {[%clk 00:13:39]} {[%emt 00:00:01]} Bf3
{[%clk 00:16:25]} {[%emt 00:01:58]} 24. Bb3 {[%clk 00:13:34]} {[%emt 00:00:14]}
Ke7 {[%clk 00:16:08]} {[%emt 00:00:28]} 25. Bc3 {[%clk 00:12:04]} {[%emt
00:01:38]} e5 {[%clk 00:14:02]} {[%emt 00:02:17]} 26. Ke1 {[%clk 00:11:33]}
{[%emt 00:00:40]} Bc7 {[%clk 00:13:21]} {[%emt 00:00:52]} 27. Bc4 {[%clk
00:11:21]} {[%emt 00:00:22]} Bg4 {[%clk 00:12:22]} {[%emt 00:01:10]} 28. Bd2
{[%clk 00:10:35]} {[%emt 00:00:54]} Be6 {[%clk 00:12:15]} {[%emt 00:00:19]} 29.
Bd3 {[%clk 00:10:28]} {[%emt 00:00:16]} h6 {[%clk 00:11:50]} {[%emt 00:00:37]}
30. Nc3 {[%clk 00:09:58]} {[%emt 00:00:39]} f5 {[%clk 00:11:18]} {[%emt
00:00:42]} 31. f3 {[%clk 00:09:40]} {[%emt 00:00:28]} Nd4 {[%clk 00:11:06]}
{[%emt 00:00:21]} 32. Kf2 {[%clk 00:09:25]} {[%emt 00:00:25]} Bb3 {[%clk
00:10:01]} {[%emt 00:01:15]} 33. Be3 {[%clk 00:09:06]} {[%emt 00:00:28]} Be6
{[%clk 00:07:36]} {[%emt 00:02:36]} 34. a4 {[%clk 00:07:20]} {[%emt 00:01:56]}
Nc6 {[%clk 00:06:41]} {[%emt 00:01:05]} 35. b5 {[%clk 00:07:24]} {[%emt
00:00:06]} axb5 {[%clk 00:06:46]} {[%emt 00:00:05]} 36. axb5 {[%clk 00:06:57]}
{[%emt 00:00:38]} Nb4 {[%clk 00:06:49]} {[%emt 00:00:06]} 37. Bb1 {[%clk
00:06:50]} {[%emt 00:00:17]} Ba5 {[%clk 00:06:25]} {[%emt 00:00:34]} 38. Bd2
{[%clk 00:06:18]} {[%emt 00:00:43]} Kf6 {[%clk 00:06:01]} {[%emt 00:00:34]} 39.
g4 {[%clk 00:05:51]} {[%emt 00:00:37]} fxg4 {[%clk 00:05:01]} {[%emt 00:01:10]}
40. Ne4+ {[%clk 00:05:18]} {[%emt 00:00:42]} Ke7 {[%clk 00:05:04]} {[%emt
00:00:07]} 41. Nd6 {[%clk 00:05:19]} {[%emt 00:00:09]} Bd5 {[%clk 00:04:51]}
{[%emt 00:00:23]} 42. fxg4 {[%clk 00:04:27]} {[%emt 00:01:02]} Nd3+ {[%clk
00:04:35]} {[%emt 00:00:26]} 43. Bxd3 {[%clk 00:03:41]} {[%emt 00:00:56]} Bxd2
{[%clk 00:04:44]} {[%emt 00:00:01]} 44. Be4 {[%clk 00:03:45]} {[%emt 00:00:06]}
Bxe4 {[%clk 00:04:24]} {[%emt 00:00:31]} 45. Nxe4 {[%clk 00:03:54]} Bb4 {[%clk
00:04:31]} {[%emt 00:00:03]} 46. c6 {[%clk 00:02:36]} {[%emt 00:01:27]} bxc6
{[%clk 00:04:25]} {[%emt 00:00:17]} 47. bxc6 {[%clk 00:02:42]} {[%emt
00:00:04]} Kd8 {[%clk 00:03:53]} {[%emt 00:00:41]} 48. Ng3 {[%clk 00:02:29]}
{[%emt 00:00:24]} Kc7 {[%clk 00:03:45]} {[%emt 00:00:17]} 49. Kf3 {[%clk
00:02:38]} {[%emt 00:00:02]} Kxc6 {[%clk 00:03:14]} {[%emt 00:00:41]} 50. Ke4
{[%clk 00:02:42]} {[%emt 00:00:06]} Kd7 {[%clk 00:02:52]} {[%emt 00:00:31]} 51.
Nf5 {[%clk 00:02:34]} {[%emt 00:00:18]} Bf8 {[%clk 00:02:59]} {[%emt 00:00:03]}
52. Kxe5 {[%clk 00:02:15]} {[%emt 00:00:28]} g6 {[%clk 00:02:57]} {[%emt
00:00:14]} 53. Ne3 {[%clk 00:02:03]} {[%emt 00:00:21]} Bg7+ {[%clk 00:02:35]}
{[%emt 00:00:32]} 54. Kd5 {[%clk 00:02:01]} {[%emt 00:00:11]} Ke7 {[%clk
00:02:34]} {[%emt 00:00:12]} 55. Ng2 {[%clk 00:01:57]} {[%emt 00:00:15]} Bb2
{[%clk 00:02:29]} {[%emt 00:00:15]} 56. h4 {[%clk 00:01:52]} {[%emt 00:00:14]}
Kf6 {[%clk 00:02:31]} {[%emt 00:00:08]} 57. Ke4 {[%clk 00:01:43]} {[%emt
00:00:19]} Be5 {[%clk 00:02:22]} {[%emt 00:00:19]} 58. Ne3 {[%clk 00:01:37]}
{[%emt 00:00:16]} Bg3 {[%clk 00:02:22]} {[%emt 00:00:11]} 59. Nd5+ {[%clk
00:01:46]} {[%emt 00:00:01]} Ke6 {[%clk 00:02:23]} {[%emt 00:00:09]} 60. h5
{[%clk 00:01:15]} {[%emt 00:00:41]} gxh5 {[%clk 00:02:32]} 61. gxh5 {[%clk
00:01:24]} {[%emt 00:00:01]} Be5 {[%clk 00:02:40]} {[%emt 00:00:01]} 62. Ne3
{[%clk 00:01:29]} {[%emt 00:00:05]} Bg7 {[%clk 00:02:41]} {[%emt 00:00:10]} 63.
Nf5 {[%clk 00:01:37]} {[%emt 00:00:02]} Bf8 {[%clk 00:02:50]} 64. Kf4 {[%clk
00:01:46]} {[%emt 00:00:02]} Kf6 {[%clk 00:02:57]} {[%emt 00:00:02]} 65. Kg4
{[%clk 00:01:55]} {[%emt 00:00:02]} Ke6 {[%clk 00:02:58]} {[%emt 00:00:09]} 66.
Ne3 {[%clk 00:01:57]} {[%emt 00:00:07]} Ke5 {[%clk 00:02:58]} {[%emt 00:00:10]}
67. Nc4+ {[%clk 00:01:57]} {[%emt 00:00:10]} Kf6 {[%clk 00:02:58]} {[%emt
00:00:10]} 68. Kf4 {[%clk 00:02:02]} {[%emt 00:00:06]} Bc5 {[%clk 00:03:02]}
{[%emt 00:00:06]} 1/2-1/2

[Event "Vastgota Open 2023"]
[Site "Skara stadshotell, Jarnvagsgatan 5, Skara, Sweden"]
[Date "2023.02.19"]
[Round "7.12"]
[White "Trost, Edvin"]
[Black "Cederqvist, Niclas"]
[Result "1-0"]
[TimeControl "15 minutes + 5 seconds per move from move one (Round 1 - 2) / 30 minutes + 10 seconds per move from move one (Round 3 - 9)"]
[WhiteTitle "FM"]
[WhiteFideId "1729519"]
[BlackFideId "1702076"]
[WhiteElo "2226"]
[BlackElo "1938"]

1. Nf3 {[%clk 00:27:29]} {[%emt 00:02:46]} d5 {[%clk 00:30:15]} {[%emt
00:00:09]} 2. g3 {[%clk 00:27:36]} {[%emt 00:00:04]} Nf6 {[%clk 00:30:10]}
{[%emt 00:00:14]} 3. Bg2 {[%clk 00:27:44]} {[%emt 00:00:03]} c6 {[%clk
00:29:05]} {[%emt 00:01:11]} 4. O-O {[%clk 00:27:37]} {[%emt 00:00:21]} e6
{[%clk 00:28:58]} {[%emt 00:00:17]} 5. d4 {[%clk 00:27:20]} {[%emt 00:00:28]}
Be7 {[%clk 00:28:50]} {[%emt 00:00:18]} 6. c4 {[%clk 00:27:28]} {[%emt
00:00:02]} O-O {[%clk 00:28:52]} {[%emt 00:00:07]} 7. Nc3 {[%clk 00:26:51]}
{[%emt 00:00:46]} Nbd7 {[%clk 00:28:38]} {[%emt 00:00:24]} 8. Qd3 {[%clk
00:27:00]} {[%emt 00:00:02]} b6 {[%clk 00:25:41]} {[%emt 00:03:07]} 9. e4
{[%clk 00:27:09]} {[%emt 00:00:01]} dxe4 {[%clk 00:25:44]} {[%emt 00:00:08]} 10.
Nxe4 {[%clk 00:27:17]} {[%emt 00:00:02]} Bb7 {[%clk 00:25:40]} {[%emt
00:00:13]} 11. Bf4 {[%clk 00:21:31]} {[%emt 00:05:56]} Nxe4 {[%clk 00:21:40]}
{[%emt 00:04:10]} 12. Qxe4 {[%clk 00:21:39]} {[%emt 00:00:01]} Nf6 {[%clk
00:18:43]} {[%emt 00:03:07]} 13. Qe2 {[%clk 00:21:48]} {[%emt 00:00:01]} c5
{[%clk 00:18:20]} {[%emt 00:00:33]} 14. Rad1 {[%clk 00:21:33]} {[%emt
00:00:25]} cxd4 {[%clk 00:17:57]} {[%emt 00:00:33]} 15. Nxd4 {[%clk 00:21:42]}
{[%emt 00:00:02]} Qc8 {[%clk 00:17:32]} {[%emt 00:00:34]} 16. b3 {[%clk
00:17:58]} {[%emt 00:03:54]} Rd8 {[%clk 00:16:22]} {[%emt 00:01:19]} 17. Nf5
{[%clk 00:14:11]} {[%emt 00:03:57]} Bc5 {[%clk 00:14:19]} {[%emt 00:02:14]} 18.
Rxd8+ {[%clk 00:14:09]} {[%emt 00:00:12]} Qxd8 {[%clk 00:13:16]} {[%emt
00:01:12]} 1-0

[Event "Vastgota Open 2023"]
[Site "Skara stadshotell, Jarnvagsgatan 5, Skara, Sweden"]
[Date "2023.02.19"]
[Round "8.2"]
[White "Seo, Jung Min"]
[Black "Palchuk, Andrii"]
[Result "1-0"]
[TimeControl "15 minutes + 5 seconds per move from move one (Round 1 - 2) / 30 minutes + 10 seconds per move from move one (Round 3 - 9)"]
[WhiteTitle "IM"]
[BlackTitle "FM"]
[WhiteFideId "1734687"]
[BlackFideId "14176688"]
[WhiteElo "2448"]
[BlackElo "2238"]

1. e4 {[%clk 00:30:20]} {[%emt 00:02:30]} c6 {[%clk 00:30:10]} {[%emt
00:00:10]} 2. d4 {[%clk 00:30:28]} {[%emt 00:00:02]} d5 {[%clk 00:30:19]}
{[%emt 00:00:01]} 3. e5 {[%clk 00:30:37]} c5 {[%clk 00:30:28]} 4. Nf3 {[%clk
00:30:40]} {[%emt 00:00:07]} cxd4 {[%clk 00:29:20]} {[%emt 00:01:18]} 5. Qxd4
{[%clk 00:30:49]} Nc6 {[%clk 00:29:25]} {[%emt 00:00:05]} 6. Qf4 {[%clk
00:30:58]} e6 {[%clk 00:28:45]} {[%emt 00:00:50]} 7. Bd3 {[%clk 00:30:57]}
{[%emt 00:00:10]} Qc7 {[%clk 00:28:10]} {[%emt 00:00:45]} 8. O-O {[%clk
00:30:45]} {[%emt 00:00:22]} Nge7 {[%clk 00:28:04]} {[%emt 00:00:16]} 9. Re1
{[%clk 00:29:58]} {[%emt 00:00:57]} Ng6 {[%clk 00:28:03]} {[%emt 00:00:11]} 10.
Qg3 {[%clk 00:30:02]} {[%emt 00:00:06]} Bd7 {[%clk 00:25:56]} {[%emt 00:02:17]}
11. a3 {[%clk 00:29:41]} {[%emt 00:00:32]} Rc8 {[%clk 00:21:50]} {[%emt
00:04:17]} 12. Nc3 {[%clk 00:27:55]} {[%emt 00:01:56]} a6 {[%clk 00:20:49]}
{[%emt 00:01:10]} 13. h4 {[%clk 00:28:01]} {[%emt 00:00:03]} d4 {[%clk
00:16:53]} {[%emt 00:04:07]} 14. Nb1 {[%clk 00:26:10]} {[%emt 00:02:00]} Nge7
{[%clk 00:16:53]} {[%emt 00:00:10]} 15. Nbd2 {[%clk 00:26:12]} {[%emt
00:00:09]} Nf5 {[%clk 00:16:54]} {[%emt 00:00:08]} 16. Bxf5 {[%clk 00:25:49]}
{[%emt 00:00:34]} exf5 {[%clk 00:17:00]} {[%emt 00:00:05]} 17. Nc4 {[%clk
00:25:57]} Be6 {[%clk 00:14:47]} {[%emt 00:02:23]} 18. Nd6+ {[%clk 00:26:06]}
Bxd6 {[%clk 00:14:56]} {[%emt 00:00:01]} 19. exd6 {[%clk 00:26:15]} {[%emt
00:00:01]} Qa5 {[%clk 00:15:06]} 20. Qxg7 {[%clk 00:25:40]} {[%emt 00:00:45]}
Kd7 {[%clk 00:15:15]} 21. Rxe6 {[%clk 00:24:57]} {[%emt 00:00:52]} Kxe6 {[%clk
00:15:23]} {[%emt 00:00:01]} 22. Ng5+ {[%clk 00:24:31]} {[%emt 00:00:36]} Kd5
{[%clk 00:15:28]} {[%emt 00:00:05]} 23. Qxf7+ {[%clk 00:24:39]} 1-0

[Event "Vastgota Open 2023"]
[Site "Skara stadshotell, Jarnvagsgatan 5, Skara, Sweden"]
[Date "2023.02.19"]
[Round "8.3"]
[White "Kucuksari, Kaan"]
[Black "Chatalbashev, Boris"]
[Result "0-1"]
[TimeControl "15 minutes + 5 seconds per move from move one (Round 1 - 2) / 30 minutes + 10 seconds per move from move one (Round 3 - 9)"]
[WhiteTitle "IM"]
[BlackTitle "GM"]
[WhiteFideId "6380166"]
[BlackFideId "2900440"]
[WhiteElo "2380"]
[BlackElo "2522"]

1. d4 {[%clk 00:30:19]} Nf6 {[%clk 00:30:17]} {[%emt 00:00:03]} 2. Nf3 {[%clk
00:30:26]} {[%emt 00:00:03]} g6 {[%clk 00:30:20]} {[%emt 00:00:06]} 3. c4
{[%clk 00:30:30]} {[%emt 00:00:07]} Bg7 {[%clk 00:30:28]} {[%emt 00:00:02]} 4.
g3 {[%clk 00:30:39]} {[%emt 00:00:01]} c5 {[%clk 00:30:29]} {[%emt 00:00:10]} 5.
d5 {[%clk 00:30:37]} {[%emt 00:00:12]} b5 {[%clk 00:29:51]} {[%emt 00:00:47]} 6.
cxb5 {[%clk 00:30:45]} {[%emt 00:00:03]} a6 {[%clk 00:30:00]} {[%emt 00:00:01]}
7. bxa6 {[%clk 00:30:53]} {[%emt 00:00:02]} O-O {[%clk 00:30:04]} {[%emt
00:00:05]} 8. Nc3 {[%clk 00:31:01]} {[%emt 00:00:02]} d6 {[%clk 00:30:12]}
{[%emt 00:00:02]} 9. Bg2 {[%clk 00:31:09]} {[%emt 00:00:02]} Nbd7 {[%clk
00:30:09]} {[%emt 00:00:13]} 10. O-O {[%clk 00:31:15]} {[%emt 00:00:04]} Nb6
{[%clk 00:29:56]} {[%emt 00:00:23]} 11. Nd2 {[%clk 00:31:01]} {[%emt 00:00:24]}
Bxa6 {[%clk 00:29:51]} {[%emt 00:00:16]} 12. Qc2 {[%clk 00:30:51]} {[%emt
00:00:20]} Bb7 {[%clk 00:29:18]} {[%emt 00:00:43]} 13. e4 {[%clk 00:30:56]}
{[%emt 00:00:05]} Ba6 {[%clk 00:29:24]} {[%emt 00:00:04]} 14. Re1 {[%clk
00:28:10]} {[%emt 00:02:55]} Ng4 {[%clk 00:29:13]} {[%emt 00:00:21]} 15. Nf3
{[%clk 00:28:00]} {[%emt 00:00:21]} Nc4 {[%clk 00:29:16]} {[%emt 00:00:07]} 16.
Bf1 {[%clk 00:24:51]} {[%emt 00:03:19]} Qa5 {[%clk 00:26:16]} {[%emt 00:03:09]}
17. Bxc4 {[%clk 00:22:39]} {[%emt 00:02:22]} Bxc4 {[%clk 00:26:24]} {[%emt
00:00:02]} 18. h3 {[%clk 00:22:48]} {[%emt 00:00:01]} Ne5 {[%clk 00:25:39]}
{[%emt 00:00:56]} 19. Nxe5 {[%clk 00:22:55]} {[%emt 00:00:03]} Bxe5 {[%clk
00:25:47]} {[%emt 00:00:02]} 20. Bd2 {[%clk 00:22:31]} {[%emt 00:00:33]} Qa6
{[%clk 00:25:08]} {[%emt 00:00:49]} 21. Bg5 {[%clk 00:15:34]} {[%emt 00:07:07]}
Rfb8 {[%clk 00:24:01]} {[%emt 00:01:17]} 22. Red1 {[%clk 00:13:31]} {[%emt
00:02:13]} Qb7 {[%clk 00:11:43]} {[%emt 00:12:28]} 23. b3 {[%clk 00:11:32]}
{[%emt 00:02:09]} Ba6 {[%clk 00:11:52]} {[%emt 00:00:02]} 24. Rab1 {[%clk
00:11:22]} {[%emt 00:00:20]} Qd7 {[%clk 00:11:38]} {[%emt 00:00:24]} 25. Kg2
{[%clk 00:11:05]} {[%emt 00:00:27]} Bc8 {[%clk 00:11:06]} {[%emt 00:00:42]} 26.
Rh1 {[%clk 00:11:00]} {[%emt 00:00:15]} f5 {[%clk 00:07:50]} {[%emt 00:03:25]}
27. Rbe1 {[%clk 00:08:58]} {[%emt 00:02:13]} Rb4 {[%clk 00:07:18]} {[%emt
00:00:42]} 28. Re2 {[%clk 00:03:39]} {[%emt 00:05:29]} Ba6 {[%clk 00:06:24]}
{[%emt 00:01:04]} 29. Re3 {[%clk 00:03:38]} {[%emt 00:00:11]} Bd4 {[%clk
00:04:47]} {[%emt 00:01:48]} 30. Ree1 {[%clk 00:03:47]} Bb7 {[%clk 00:04:52]}
{[%emt 00:00:05]} 31. exf5 {[%clk 00:02:05]} {[%emt 00:01:51]} Qxf5 {[%clk
00:04:18]} {[%emt 00:00:44]} 32. Qxf5 {[%clk 00:00:19]} {[%emt 00:01:57]} gxf5
{[%clk 00:04:26]} {[%emt 00:00:01]} 33. Na4 {[%clk 00:00:13]} {[%emt 00:00:16]}
Bxd5+ {[%clk 00:04:26]} {[%emt 00:00:10]} 34. f3 {[%clk 00:00:21]} {[%emt
00:00:02]} Raxa4 {[%clk 00:04:15]} {[%emt 00:00:21]} 0-1

[Event "Vastgota Open 2023"]
[Site "Skara stadshotell, Jarnvagsgatan 5, Skara, Sweden"]
[Date "2023.02.19"]
[Round "8.4"]
[White "Miezis, Normunds"]
[Black "Trost, Edvin"]
[Result "1-0"]
[TimeControl "15 minutes + 5 seconds per move from move one (Round 1 - 2) / 30 minutes + 10 seconds per move from move one (Round 3 - 9)"]
[WhiteTitle "GM"]
[BlackTitle "FM"]
[WhiteFideId "11600136"]
[BlackFideId "1729519"]
[WhiteElo "2502"]
[BlackElo "2226"]

1. c4 {[%clk 00:30:17]} {[%emt 00:00:03]} g6 {[%clk 00:28:00]} {[%emt
00:02:21]} 2. Nc3 {[%clk 00:30:18]} {[%emt 00:00:08]} Bg7 {[%clk 00:28:07]}
{[%emt 00:00:04]} 3. g3 {[%clk 00:30:24]} {[%emt 00:00:03]} f5 {[%clk
00:25:45]} {[%emt 00:02:33]} 4. Bg2 {[%clk 00:30:01]} {[%emt 00:00:32]} Nf6
{[%clk 00:25:54]} 5. d3 {[%clk 00:29:14]} {[%emt 00:00:59]} O-O {[%clk
00:25:43]} {[%emt 00:00:21]} 6. e4 {[%clk 00:29:10]} {[%emt 00:00:13]} e5
{[%clk 00:24:08]} {[%emt 00:01:46]} 7. Nge2 {[%clk 00:28:20]} {[%emt 00:01:00]}
d6 {[%clk 00:23:23]} {[%emt 00:00:55]} 8. O-O {[%clk 00:27:20]} {[%emt
00:01:09]} Nc6 {[%clk 00:23:13]} {[%emt 00:00:21]} 9. Nd5 {[%clk 00:26:16]}
{[%emt 00:01:13]} Be6 {[%clk 00:19:52]} {[%emt 00:03:31]} 10. Bg5 {[%clk
00:25:35]} {[%emt 00:00:51]} Qd7 {[%clk 00:19:44]} {[%emt 00:00:19]} 11. Qd2
{[%clk 00:25:19]} {[%emt 00:00:25]} Nh5 {[%clk 00:17:02]} {[%emt 00:02:52]} 12.
exf5 {[%clk 00:22:01]} {[%emt 00:03:28]} gxf5 {[%clk 00:16:06]} {[%emt
00:01:07]} 13. f4 {[%clk 00:22:02]} {[%emt 00:00:09]} h6 {[%clk 00:14:32]}
{[%emt 00:01:43]} 14. Bh4 {[%clk 00:22:07]} {[%emt 00:00:06]} Rae8 {[%clk
00:14:34]} {[%emt 00:00:08]} 15. Rae1 {[%clk 00:21:58]} {[%emt 00:00:18]} Nd8
{[%clk 00:12:43]} {[%emt 00:02:02]} 16. d4 {[%clk 00:17:03]} {[%emt 00:05:04]}
c6 {[%clk 00:10:34]} {[%emt 00:02:19]} 17. Ne3 {[%clk 00:16:51]} {[%emt
00:00:22]} exf4 {[%clk 00:09:34]} {[%emt 00:01:11]} 18. Nxf4 {[%clk 00:15:51]}
{[%emt 00:01:09]} Nxf4 {[%clk 00:09:44]} {[%emt 00:00:02]} 19. Rxf4 {[%clk
00:15:51]} {[%emt 00:00:09]} d5 {[%clk 00:09:47]} {[%emt 00:00:06]} 20. cxd5
{[%clk 00:14:55]} {[%emt 00:01:06]} cxd5 {[%clk 00:09:56]} {[%emt 00:00:02]} 21.
Bxd8 {[%clk 00:14:57]} {[%emt 00:00:07]} Rxd8 {[%clk 00:09:43]} {[%emt
00:00:24]} 22. Ref1 {[%clk 00:12:33]} {[%emt 00:02:34]} Bf6 {[%clk 00:08:40]}
{[%emt 00:01:13]} 23. Qd3 {[%clk 00:12:02]} {[%emt 00:00:41]} Bg5 {[%clk
00:02:27]} {[%emt 00:06:23]} 24. R4f3 {[%clk 00:11:56]} {[%emt 00:00:15]} Rde8
{[%clk 00:02:12]} {[%emt 00:00:26]} 25. Nxf5 {[%clk 00:05:53]} {[%emt
00:06:12]} Kh8 {[%clk 00:02:21]} {[%emt 00:00:02]} 26. h4 {[%clk 00:04:28]}
{[%emt 00:01:34]} Bxf5 {[%clk 00:01:48]} {[%emt 00:00:44]} 27. Rxf5 {[%clk
00:04:27]} {[%emt 00:00:11]} Rxf5 {[%clk 00:01:45]} {[%emt 00:00:13]} 28. Rxf5
{[%clk 00:04:25]} {[%emt 00:00:12]} Be3+ {[%clk 00:00:21]} {[%emt 00:01:34]} 29.
Kh2 {[%clk 00:04:27]} {[%emt 00:00:07]} Qg7 {[%clk 00:00:12]} {[%emt 00:00:21]}
30. Rxd5 {[%clk 00:02:35]} {[%emt 00:02:01]} Bf2 {[%clk 00:00:21]} {[%emt
00:00:01]} 31. Rf5 {[%clk 00:01:49]} {[%emt 00:00:56]} Bxd4 {[%clk 00:00:11]}
{[%emt 00:00:20]} 32. Qf3 {[%clk 00:01:37]} {[%emt 00:00:20]} Bc5 {[%clk
00:00:11]} {[%emt 00:00:12]} 33. Rxc5 {[%emt 00:00:15]} 1-0